fUST/lending_fUST_20240803
["ID","MTS","AMOUNT","RATE_DAILY","PERIOD"]
[333906815,1722622232623,-436.65,0.00010959,2]
[333906817,1722622232634,-166.94504883,0.00011591,2]
[333906819,1722622232646,-133.05495117,0.00011591,2]
[333906821,1722622232655,-300.0,0.00011591,2]
[333906824,1722622232665,-12913.51251807,0.00011592,2]
[333906868,1722622238191,-363.88,0.00010959,2]
[333906869,1722622238200,-11562.06455116,0.00011592,2]
[333907019,1722622240457,-424.42293077,0.00011592,2]
[333907020,1722622240467,-197.198827,0.00011709,2]
[333907021,1722622240477,-171.79649916,0.00012,2]
[333907022,1722622240486,-197.198827,0.00012014,2]
[333907023,1722622240496,-778.5136062,0.0001202,2]
[333907024,1722622240506,-197.198827,0.00012319,2]
[333907025,1722622240515,-420.0,0.0001275,2]
[333907026,1722622240525,-172.998252,0.00012986,2]
[333907027,1722622240535,-1000.0,0.00013,13]
[333907028,1722622240548,-4635.6460571,0.00013253,2]
[333907029,1722622240558,-275.83679229,0.00013264,2]
[333907030,1722622240568,-153.0,0.00013507,2]
[333907031,1722622240578,-206.9342036,0.00013507,2]
[333907032,1722622240589,-364.5391865,0.00013507,2]
[333907033,1722622240598,-306.0,0.00013507,2]
[333907034,1722622240608,-294.2025256,0.00013507,2]
[333907035,1722622240619,-206.9342036,0.00013507,2]
[333907036,1722622240629,-294.2025256,0.00013507,2]
[333907037,1722622240639,-206.9342036,0.00013507,2]
[333907038,1722622240648,-294.2025256,0.00013507,2]
[333907039,1722622240658,-294.2025256,0.00013507,2]
[333907040,1722622240667,-1410.0,0.00013571,2]
[333907041,1722622240678,-2545.85279928,0.00013597,2]
[333907042,1722622240687,-2000.0,0.00013598,2]
[333907043,1722622240697,-2715.06376551,0.00013598,2]
[333907045,1722622240707,-2545.85279928,0.00013636,2]
[333907047,1722622240717,-2545.85279928,0.00013674,2]
[333907049,1722622240727,-1192.92,0.00013675,2]
[333907051,1722622240736,-1553.97,0.00013687,2]
[333907053,1722622240746,-1553.97,0.00013687,2]
[333907055,1722622240755,-1553.97,0.00013687,2]
[333907057,1722622240765,-1553.97,0.00013687,2]
[333907059,1722622240775,-1553.97,0.00013687,2]
[333907060,1722622240784,-17339.57178609,0.00013688,5]
[333907062,1722622240795,-216993.30420564,0.00013688,2]
[333907155,1722622245580,-1382.90692298,0.00013688,2]
[333907176,1722622246746,-3.43482524,0.00010959,2]
[333907778,1722622283681,5000.0,0.00027,120]
[333907779,1722622305459,379.80158965,9.999e-05,2]
[333907804,1722622337505,667.22039427,9.999e-05,2]
[333907805,1722622394857,150.5,0.000178,120]
[333907806,1722622395294,150.5,0.0001779,120]
[333907807,1722622395751,150.5,0.0001778,120]
[333907809,1722622400628,172.77789669,9.999e-05,2]
[333907810,1722622415933,495.69104374,9.999e-05,2]
[333907816,1722622503239,149.999999,0.00027,120]
[333907838,1722622994109,150.5,0.000178,120]
[333907839,1722622994412,150.5,0.000178,120]
[333907840,1722622994557,150.5,0.0001779,120]
[333907841,1722622994587,207.0,0.000178,120]
[333907842,1722622994878,150.5,0.0001779,120]
[333907843,1722622995035,207.0,0.0001779,120]
[333907844,1722622995072,201.52,0.0001778,120]
[333907845,1722622995338,150.5,0.0001778,120]
[333907846,1722622995625,207.0,0.0001778,120]
[333907847,1722623115095,188.5,0.000178,120]
[333907885,1722623235682,150.5,0.000178,120]
[333907886,1722623236168,150.5,0.0001779,120]
[333907887,1722623236616,150.5,0.0001778,120]
[333907902,1722623307908,1575.96267477,0.0002,120]
[333907907,1722623321567,201.20894965,0.0002525,120]
[333907908,1722623322923,916.26317139,0.00023,120]
[333907910,1722623324904,611.78557917,0.00025,120]
[333907911,1722623325429,1611.10058157,0.00027,120]
[333907912,1722623326097,739.30710567,0.00027,120]
[333907913,1722623326235,5081.58218713,0.00027,120]
[333907914,1722623326280,261.02684148,0.000245,120]
[333907944,1722623432546,-302.66,0.00010959,2]
[333907945,1722623432556,-252.22,0.00010959,2]
[333907946,1722623432565,-210.18,0.00010959,2]
[333907947,1722623432575,-175.15,0.00010959,2]
[333907948,1722623432585,-214.99154369,0.00010959,2]
[333907949,1722623432601,-660.77845631,0.00010959,2]
[333907950,1722623432610,-300.0,0.00011705,2]
[333907951,1722623432620,-300.0,0.00011705,2]
[333907952,1722623432630,-5736.32929342,0.00011707,2]
[333907953,1722623432642,-3439.31867302,0.00011707,2]
[333907954,1722623432654,-2517.768071,0.00011707,2]
[333907964,1722623438392,-5748.00496909,0.00011707,2]
[333907966,1722623438724,-1632.87225287,0.00011707,2]
[333907968,1722623438735,-250.0,0.00012161,2]
[333907970,1722623438746,-250.0,0.00012195,2]
[333907972,1722623438756,-250.0,0.00012228,2]
[333907974,1722623438766,-250.0,0.00012261,2]
[333907976,1722623438776,-250.0,0.00012295,2]
[333907977,1722623438786,-250.0,0.00012328,2]
[333907979,1722623438797,-250.0,0.00012362,2]
[333907981,1722623438807,-250.0,0.00012395,2]
[333907983,1722623438819,-250.0,0.00012428,2]
[333907985,1722623438829,-250.0,0.00012462,2]
[333907986,1722623438838,-250.0,0.00012495,2]
[333907987,1722623438847,-250.0,0.00012528,2]
[333907988,1722623438857,-250.0,0.00012562,2]
[333907990,1722623438867,-250.0,0.00012595,2]
[333907991,1722623438876,-250.0,0.00012628,2]
[333907992,1722623438885,-250.0,0.00012662,2]
[333907994,1722623438896,-294.2025256,0.00012685,2]
[333907996,1722623438906,-297.4036314,0.00012685,2]
[333907998,1722623438917,-250.0,0.00012695,2]
[333908000,1722623438931,-250.0,0.00012728,2]
[333908002,1722623438942,-250.0,0.00012762,2]
[333908003,1722623438952,-250.0,0.00012795,2]
[333908004,1722623438962,-420.0,0.00012853,2]
[333908005,1722623438972,-420.0,0.00012876,2]
[333908006,1722623438982,-173.1975,0.00012986,2]
[333908007,1722623438992,-620.03162384,0.0001316,2]
[333908008,1722623439001,-770.50409253,0.00013225,2]
[333908010,1722623439016,-2075.65589102,0.00013225,2]
[333908012,1722623439029,-2466.17046967,0.00013225,2]
[333908014,1722623439038,-2264.3019343,0.00013407,2]
[333908016,1722623439049,-1018.34111972,0.00013577,2]
[333908018,1722623439059,-2291.60556689,0.00013579,2]
[333908020,1722623439069,-1018.34111971,0.00013582,2]
[333908022,1722623439078,-1018.34111971,0.00013588,2]
[333908024,1722623439087,-5691.35507765,0.00013588,2]
[333908074,1722623443556,-1249.4036314,0.00013588,2]
[333908075,1722623443567,-1310.33358413,0.00013588,2]
[333908076,1722623443579,-1716.25731645,0.00013588,2]
[333908160,1722623446693,-7730.66324254,0.00013588,2]
[333908161,1722623446705,-1563.999095,0.00013588,2]
[333908167,1722623446819,-1057.369705,0.00013588,2]
[333908168,1722623446831,-1099.7731875,0.00013588,2]
[333908169,1722623446843,-780.56765968,0.00013588,2]
[333908170,1722623446923,-4823.30426636,0.00013588,2]
[333908171,1722623446936,-113.4940889,0.00013593,2]
[333908172,1722623446949,-270.81688255,0.00013593,2]
[333908177,1722623453057,1259.0,0.00025,60]
[333908179,1722623474504,150.5,0.0001799,120]
[333908180,1722623475087,150.5,0.0001798,120]
[333908181,1722623475448,150.5,0.0001797,120]
[333908182,1722623475953,150.5,0.0002649,120]
[333908183,1722623476442,211.18,0.0002648,120]
[333908297,1722624613948,306.0,0.00027,120]
[333908320,1722624633757,-250.0,0.00012545,2]
[333908321,1722624633767,-250.0,0.0001258,2]
[333908322,1722624633777,-250.0,0.00012614,2]
[333908323,1722624633786,-250.0,0.00012649,2]
[333908324,1722624633795,-250.0,0.00012683,2]
[333908331,1722624633904,-250.0,0.00012717,2]
[333908333,1722624633914,-250.0,0.00012752,2]
[333908335,1722624633924,-250.0,0.00012786,2]
[333908336,1722624633934,-250.0,0.00012821,2]
[333908337,1722624633944,-250.0,0.00012855,2]
[333908338,1722624633953,-191.58597513,0.00012886,2]
[333908339,1722624633963,-203.63407685,0.00012886,2]
[333908340,1722624633973,-250.0,0.0001289,2]
[333908341,1722624633982,-250.0,0.00012924,2]
[333908342,1722624633992,-250.0,0.00012958,2]
[333908343,1722624634002,-173.446317,0.00012986,2]
[333908344,1722624634012,-250.0,0.00012993,2]
[333908345,1722624634021,-250.0,0.00013027,2]
[333908346,1722624634031,-250.0,0.00013062,2]
[333908347,1722624634040,-250.0,0.00013096,2]
[333908348,1722624634049,-250.0,0.0001313,2]
[333908349,1722624634059,-250.0,0.00013165,2]
[333908350,1722624634068,-250.0,0.00013199,2]
[333908351,1722624634078,-367.7699373,0.00013228,2]
[333908352,1722624634088,-5312.33045322,0.00013332,2]
[333908353,1722624634098,-330.47425361,0.00013466,2]
[333908354,1722624634107,-2491.86614959,0.00013468,2]
[333908355,1722624634117,-300.0,0.00013472,2]
[333908356,1722624634126,-300.0,0.00013473,2]
[333908357,1722624634136,-330.47425359,0.00013475,2]
[333908358,1722624634146,-116.69006603,0.00013483,2]
[333908359,1722624634159,-213.78418756,0.00013483,2]
[333908360,1722624634168,-330.47425359,0.00013492,2]
[333908361,1722624634177,-2413.56583491,0.00013498,2]
[333908362,1722624634189,-9409.8039531,0.00013498,2]
[333908363,1722624634198,-294.2025256,0.000135,2]
[333908364,1722624634207,-153.0,0.000135,2]
[333908365,1722624634217,-330.47425359,0.000135,2]
[333908366,1722624634226,-294.2025256,0.000135,2]
[333908367,1722624634236,-294.2025256,0.000135,2]
[333908368,1722624634245,-54964.39731331,0.00013558,2]
[333908379,1722624638768,-585.0113557,0.00013558,5]
[333908413,1722624640796,-8084.77453734,0.00013558,5]
[333908414,1722624640806,-5366.22546265,0.00013558,2]
[333908415,1722624640911,-728.23,0.00013558,2]
[333909040,1722624647156,-1775.125,0.00013558,2]
[333909042,1722624647168,-32262.69396104,0.00013558,2]
[333909044,1722624647178,-999.000999,0.00013566,2]
[333909046,1722624647188,-55469.77281194,0.00013567,2]
[333909048,1722624647198,-152.741646,0.0001357,2]
[333909050,1722624647207,-151.0,0.0001357,2]
[333909052,1722624647217,-151.0,0.0001357,2]
[333909054,1722624647227,-2248.429925,0.0001357,2]
[333909056,1722624647236,-2248.429925,0.0001357,2]
[333909058,1722624647246,-47548.3358685,0.0001357,2]
[333909060,1722624647255,-2039.16,0.00013578,2]
[333909062,1722624647266,-151.0,0.0001358,2]
[333909064,1722624647275,-151.0,0.0001358,2]
[333909066,1722624647284,-151.0,0.0001358,2]
[333909068,1722624647294,-151.0,0.0001358,2]
[333909070,1722624647303,-151.0,0.0001358,2]
[333909072,1722624647312,-151.0,0.0001358,2]
[333909074,1722624647322,-151.0,0.0001358,2]
[333909075,1722624647335,-151.0,0.0001358,2]
[333909077,1722624647344,-151.0,0.0001358,2]
[333909079,1722624647354,-151.0,0.0001358,2]
[333909081,1722624647364,-151.0,0.0001358,2]
[333909083,1722624647374,-151.0,0.0001358,2]
[333909085,1722624647384,-151.0,0.0001358,2]
[333909087,1722624647393,-151.0,0.0001358,2]
[333909089,1722624647403,-992.272709,0.0001358,2]
[333909091,1722624647414,-992.272709,0.0001358,2]
[333909093,1722624647423,-151.0,0.0001358,2]
[333909094,1722624647433,-151.0,0.0001358,2]
[333909096,1722624647442,-151.0,0.0001358,2]
[333909098,1722624647451,-2248.429925,0.0001358,2]
[333909100,1722624647461,-2248.429925,0.0001358,2]
[333909102,1722624647470,-95096.671737,0.0001358,2]
[333909104,1722624647480,-2039.16,0.00013587,2]
[333909106,1722624647489,-2039.16,0.00013587,2]
[333909108,1722624647500,-151.0,0.0001359,2]
[333909110,1722624647509,-151.0,0.0001359,2]
[333909112,1722624647519,-151.0,0.0001359,2]
[333909114,1722624647528,-151.0,0.0001359,2]
[333909115,1722624647537,-214.07282,0.0001359,2]
[333909117,1722624647546,-151.0,0.0001359,2]
[333909119,1722624647555,-190.130721,0.0001359,2]
[333909121,1722624647564,-190.130721,0.0001359,2]
[333909123,1722624647574,-1026.491761,0.0001359,2]
[333909125,1722624647584,-151.0,0.0001359,2]
[333909127,1722624647594,-1026.491761,0.0001359,2]
[333909129,1722624647603,-151.0,0.0001359,2]
[333909131,1722624647612,-151.0,0.0001359,2]
[333909133,1722624647622,-151.0,0.0001359,2]
[333909135,1722624647631,-151.0,0.0001359,2]
[333909137,1722624647641,-151.0,0.0001359,2]
[333909139,1722624647651,-151.0,0.0001359,2]
[333909141,1722624647661,-47548.3358685,0.0001359,2]
[333909144,1722624647671,-151.0,0.0001359,2]
[333909146,1722624647681,-151.0,0.0001359,2]
[333909147,1722624647690,-151.0,0.0001359,2]
[333909149,1722624647699,-151.0,0.0001359,2]
[333909151,1722624647709,-992.272709,0.0001359,2]
[333909153,1722624647718,-992.272709,0.0001359,2]
[333909155,1722624647728,-151.0,0.0001359,2]
[333909157,1722624647737,-151.0,0.0001359,2]
[333909158,1722624647747,-151.0,0.0001359,2]
[333909159,1722624647756,-2248.429925,0.0001359,2]
[333909160,1722624647765,-1502.24210253,0.00013598,2]
[333909161,1722624647775,-200.0,0.00013598,2]
[333909162,1722624647784,-2039.16,0.00013599,2]
[333909163,1722624647794,-5000.0,0.000136,2]
[333909164,1722624647803,-2080.0,0.000136,2]
[333909165,1722624647813,-150.112233,0.000136,2]
[333909166,1722624647822,-27529.02641921,0.000136,2]
[333909167,1722624647832,-150.112233,0.000136,2]
[333909168,1722624647842,-150.112233,0.000136,2]
[333909169,1722624647852,-151.0,0.000136,2]
[333909171,1722624647862,-151.26329,0.000136,2]
[333909173,1722624647872,-151.0,0.000136,2]
[333909175,1722624647881,-271.869942,0.000136,2]
[333909177,1722624647891,-151.0,0.000136,2]
[333909179,1722624647900,-151.0,0.000136,2]
[333909181,1722624647910,-151.0,0.000136,2]
[333909183,1722624647919,-312.552309,0.000136,2]
[333909185,1722624647928,-312.552309,0.000136,2]
[333909187,1722624647938,-306.0,0.000136,2]
[333909189,1722624647948,-206.9342036,0.000136,2]
[333909191,1722624647957,-294.2025256,0.000136,2]
[333909193,1722624647967,-306.0,0.000136,2]
[333909195,1722624647976,-151.0,0.000136,2]
[333909198,1722624647986,-151.0,0.000136,2]
[333909200,1722624647995,-294.2025256,0.000136,2]
[333909202,1722624648005,-419.374821,0.000136,2]
[333909204,1722624648014,-153.0,0.000136,2]
[333909206,1722624648024,-231.651917,0.000136,2]
[333909208,1722624648034,-150.112233,0.000136,2]
[333909210,1722624648044,-150.112233,0.000136,2]
[333909212,1722624648053,-190.130721,0.000136,2]
[333909214,1722624648063,-190.130721,0.000136,2]
[333909216,1722624648072,-294.2025256,0.000136,2]
[333909218,1722624648082,-153.0,0.000136,2]
[333909220,1722624648091,-206.9342036,0.000136,2]
[333909222,1722624648100,-1026.491761,0.000136,2]
[333909224,1722624648110,-151.0,0.000136,2]
[333909226,1722624648120,-1026.491761,0.000136,2]
[333909228,1722624648130,-151.0,0.000136,2]
[333909230,1722624648139,-151.0,0.000136,2]
[333909232,1722624648149,-231.38037,0.000136,2]
[333909234,1722624648158,-151.0,0.000136,2]
[333909236,1722624648168,-151.0,0.000136,2]
[333909238,1722624648177,-151.0,0.000136,2]
[333909240,1722624648187,-151.0,0.000136,2]
[333909242,1722624648196,-269.617798,0.000136,2]
[333909244,1722624648206,-151.0,0.000136,2]
[333909246,1722624648215,-151.0,0.000136,2]
[333909248,1722624648225,-992.272709,0.000136,2]
[333909250,1722624648234,-992.272709,0.000136,2]
[333909252,1722624648243,-151.0,0.000136,2]
[333909254,1722624648253,-151.0,0.000136,2]
[333909256,1722624648263,-151.0,0.000136,2]
[333909258,1722624648272,-2248.429925,0.000136,2]
[333909260,1722624648282,-190.130721,0.00013647,2]
[333909263,1722624648292,-190.130721,0.00013647,2]
[333909265,1722624648301,-1026.491761,0.00013647,2]
[333909267,1722624648311,-151.0,0.00013647,2]
[333909269,1722624648320,-1026.491761,0.00013647,2]
[333909271,1722624648332,-151.0,0.00013647,2]
[333909273,1722624648342,-151.0,0.00013647,2]
[333909275,1722624648353,-151.0,0.00013647,2]
[333909277,1722624648363,-151.0,0.00013647,2]
[333909279,1722624648373,-169.486264,0.00013647,2]
[333909281,1722624648382,-151.0,0.00013647,2]
[333909283,1722624648392,-151.0,0.00013647,2]
[333909285,1722624648402,-151.0,0.00013647,2]
[333909287,1722624648412,-151.0,0.00013647,2]
[333909289,1722624648421,-151.0,0.00013647,2]
[333909300,1722624648515,-151.0,0.00013647,2]
[333909302,1722624648526,-151.0,0.00013647,2]
[333909304,1722624648536,-207.81377,0.00013647,2]
[333909306,1722624648546,-992.272709,0.00013647,2]
[333909308,1722624648556,-992.272709,0.00013647,2]
[333909310,1722624648566,-992.272709,0.00013647,2]
[333909312,1722624648575,-992.272709,0.00013647,2]
[333909314,1722624648586,-151.0,0.00013647,2]
[333909316,1722624648596,-151.0,0.00013647,2]
[333909318,1722624648608,-151.0,0.00013647,2]
[333909320,1722624648619,-151.0,0.00013647,2]
[333909322,1722624648628,-2248.429925,0.00013647,2]
[333909324,1722624648639,-190.130721,0.00013657,2]
[333909326,1722624648649,-190.130721,0.00013657,2]
[333909328,1722624648659,-1026.491761,0.00013657,2]
[333909330,1722624648669,-1026.491761,0.00013657,2]
[333909332,1722624648679,-151.0,0.00013657,2]
[333909334,1722624648689,-151.0,0.00013657,2]
[333909336,1722624648699,-200.386461,0.00013657,2]
[333909338,1722624648709,-151.0,0.00013657,2]
[333909340,1722624648718,-151.0,0.00013657,2]
[333909342,1722624648728,-992.272709,0.00013657,2]
[333909344,1722624648738,-992.272709,0.00013657,2]
[333909346,1722624648747,-260.83996,0.00013657,2]
[333909348,1722624648757,-151.0,0.00013658,2]
[333909350,1722624648767,-151.0,0.00013658,2]
[333909352,1722624648776,-312.552309,0.00013658,2]
[333909354,1722624648786,-312.552309,0.00013658,2]
[333909356,1722624648796,-2248.429925,0.00013658,2]
[333909358,1722624648806,-151.0,0.00013667,2]
[333909360,1722624648815,-151.0,0.00013667,2]
[333909362,1722624648825,-151.0,0.00013667,2]
[333909364,1722624648835,-312.552309,0.00013667,2]
[333909366,1722624648845,-312.552309,0.00013667,2]
[333909368,1722624648855,-312.552309,0.00013667,2]
[333909370,1722624648865,-312.552309,0.00013667,2]
[333909372,1722624648875,-312.552309,0.00013667,2]
[333909374,1722624648884,-312.552309,0.00013667,2]
[333909376,1722624648894,-190.130721,0.00013667,2]
[333909378,1722624648904,-190.130721,0.00013667,2]
[333909380,1722624648914,-1026.491761,0.00013667,2]
[333909382,1722624648923,-1026.491761,0.00013667,2]
[333909385,1722624648933,-151.0,0.00013667,2]
[333909387,1722624648943,-151.0,0.00013667,2]
[333909389,1722624648953,-2039.16,0.00013667,2]
[333909391,1722624648963,-151.0,0.00013667,2]
[333909393,1722624648974,-219.204602,0.00013667,2]
[333909395,1722624648983,-198.82252427,0.00013673,2]
[333909397,1722624648994,-200.0,0.00013673,2]
[333909399,1722624649004,-200.0,0.00013673,2]
[333909401,1722624649014,-2039.16,0.00013676,2]
[333909403,1722624649023,-151.0,0.00013676,2]
[333909405,1722624649033,-151.0,0.00013676,2]
[333909407,1722624649043,-992.272709,0.00013676,2]
[333909409,1722624649052,-992.272709,0.00013676,2]
[333909411,1722624649062,-151.0,0.00013676,2]
[333909413,1722624649072,-2248.429925,0.00013676,2]
[333909415,1722624649081,-8958.19504695,0.00013677,5]
[333909417,1722624649095,-642.5,0.00013677,5]
[333909419,1722624649106,-8698.1640257,0.00013677,5]
[333909429,1722624649184,-2248.429925,0.0001359,2]
[333909431,1722624649195,-15106.37579691,0.00013677,5]
[333909433,1722624649204,-2039.16,0.00013677,2]
[333909435,1722624649214,-2039.16,0.00013677,2]
[333909437,1722624649224,-2248.429925,0.00013677,2]
[333909439,1722624649234,-151.0,0.00013678,2]
[333909441,1722624649243,-190.130721,0.00013678,2]
[333909443,1722624649253,-190.130721,0.00013678,2]
[333909445,1722624649263,-1026.491761,0.00013678,2]
[333909447,1722624649272,-1026.491761,0.00013678,2]
[333909449,1722624649281,-2039.16,0.00013678,2]
[333909451,1722624649291,-2039.16,0.00013678,2]
[333909453,1722624649300,-151.0,0.00013687,2]
[333909455,1722624649310,-151.0,0.00013687,2]
[333909457,1722624649320,-2039.16,0.00013687,2]
[333909459,1722624649332,-151.0,0.00013687,2]
[333909461,1722624649342,-151.0,0.00013687,2]
[333909464,1722624649357,-992.272709,0.00013687,2]
[333909466,1722624649372,-992.272709,0.00013687,2]
[333909469,1722624649388,-151.0,0.00013688,2]
[333909471,1722624649402,-312.552309,0.00013688,2]
[333909474,1722624649415,-312.552309,0.00013688,2]
[333909476,1722624649429,-190.130721,0.00013688,2]
[333909478,1722624649443,-190.130721,0.00013688,2]
[333909481,1722624649458,-1026.491761,0.00013688,2]
[333909483,1722624649471,-1026.491761,0.00013688,2]
[333909486,1722624649486,-151.0,0.00013688,2]
[333909488,1722624649500,-151.0,0.00013688,2]
[333909491,1722624649513,-151.0,0.00013688,2]
[333909493,1722624649525,-2248.429925,0.00013688,2]
[333909495,1722624649538,-151.0,0.00013697,2]
[333909498,1722624649552,-312.552309,0.00013697,2]
[333909500,1722624649565,-312.552309,0.00013697,2]
[333909503,1722624649578,-190.130721,0.00013697,2]
[333909505,1722624649589,-190.130721,0.00013697,2]
[333909507,1722624649603,-1026.491761,0.00013697,2]
[333909510,1722624649616,-1026.491761,0.00013697,2]
[333909512,1722624649630,-151.0,0.00013697,2]
[333909515,1722624649643,-151.0,0.00013697,2]
[333909517,1722624649657,-2039.16,0.00013697,2]
[333909519,1722624649671,-2039.16,0.00013697,2]
[333909522,1722624649685,-2039.16,0.00013697,2]
[333909525,1722624649701,-2039.16,0.00013697,2]
[333909527,1722624649712,-2039.16,0.00013697,2]
[333909529,1722624649724,-2039.16,0.00013697,2]
[333909531,1722624649735,-2039.16,0.00013697,2]
[333909534,1722624649748,-2039.16,0.00013697,2]
[333909536,1722624649761,-151.0,0.00013697,2]
[333909539,1722624649774,-151.0,0.00013697,2]
[333909541,1722624649785,-992.272709,0.00013697,2]
[333909543,1722624649797,-992.272709,0.00013697,2]
[333909545,1722624649809,-151.0,0.00013697,2]
[333909548,1722624649822,-151.0,0.00013697,2]
[333909550,1722624649833,-2248.429925,0.00013697,2]
[333909552,1722624649843,-500.0,0.00013698,2]
[333909554,1722624649854,-160.73922024,0.00013698,2]
[333909557,1722624649866,-500.0,0.00013698,2]
[333909559,1722624649878,-500.0,0.00013698,2]
[333909561,1722624649890,-500.0,0.00013698,2]
[333909564,1722624649901,-500.0,0.00013698,2]
[333909566,1722624649913,-500.0,0.00013698,2]
[333909568,1722624649925,-500.0,0.00013698,2]
[333909570,1722624649936,-496.0640636,0.00013698,2]
[333909573,1722624649947,-500.0,0.00013698,2]
[333909575,1722624649959,-572.84595339,0.00013698,2]
[333909577,1722624649971,-213.10490754,0.00013698,2]
[333909579,1722624649982,-232.79343328,0.00013698,2]
[333909582,1722624649994,-232.64076877,0.00013698,2]
[333909584,1722624650005,-500.0,0.00013698,2]
[333909586,1722624650017,-500.0,0.00013698,2]
[333909589,1722624650029,-500.0,0.00013698,2]
[333909591,1722624650040,-500.0,0.00013698,2]
[333909593,1722624650051,-500.0,0.00013698,2]
[333909595,1722624650062,-500.0,0.00013698,2]
[333909597,1722624650073,-464.90049769,0.00013698,2]
[333909599,1722624650085,-619.54218186,0.00013698,2]
[333909602,1722624650096,-500.0,0.00013698,2]
[333909604,1722624650109,-500.0,0.00013698,2]
[333909606,1722624650120,-502.74325422,0.00013698,2]
[333909608,1722624650131,-508.66921285,0.00013698,2]
[333909610,1722624650144,-500.0,0.00013698,2]
[333909612,1722624650155,-500.0,0.00013698,2]
[333909615,1722624650168,-500.0,0.00013698,2]
[333909617,1722624650180,-500.0,0.00013698,2]
[333909619,1722624650191,-500.0,0.00013698,2]
[333909621,1722624650203,-500.0,0.00013698,2]
[333909623,1722624650214,-500.0,0.00013698,2]
[333909625,1722624650225,-500.0,0.00013698,2]
[333909628,1722624650237,-500.0,0.00013698,2]
[333909630,1722624650249,-500.0,0.00013698,2]
[333909632,1722624650260,-563.26,0.00013698,2]
[333909635,1722624650271,-500.0,0.00013698,2]
[333909637,1722624650282,-500.0,0.00013698,2]
[333909639,1722624650294,-500.0,0.00013698,2]
[333909641,1722624650305,-500.0,0.00013698,2]
[333909644,1722624650317,-430.85125548,0.00013698,2]
[333909646,1722624650329,-500.0,0.00013698,2]
[333909648,1722624650340,-500.0,0.00013698,2]
[333909650,1722624650352,-500.0,0.00013698,2]
[333909652,1722624650362,-500.0,0.00013698,2]
[333909654,1722624650372,-500.0,0.00013698,2]
[333909656,1722624650381,-500.0,0.00013698,2]
[333909658,1722624650391,-216.64701091,0.00013698,2]
[333909672,1722624650517,-191.17818923,0.00013698,2]
[333909675,1722624650539,-500.0,0.00013698,2]
[333909677,1722624650551,-505.94128905,0.00013698,2]
[333909679,1722624650561,-500.0,0.00013698,2]
[333909681,1722624650570,-511.17279121,0.00013698,2]
[333909683,1722624650580,-500.0,0.00013698,2]
[333909685,1722624650590,-500.0,0.00013698,2]
[333909687,1722624650599,-500.0,0.00013698,2]
[333909689,1722624650610,-500.0,0.00013698,2]
[333909691,1722624650619,-500.0,0.00013698,2]
[333909693,1722624650628,-500.0,0.00013698,2]
[333909695,1722624650638,-500.0,0.00013698,2]
[333909698,1722624650648,-500.0,0.00013698,2]
[333909700,1722624650658,-500.0,0.00013698,2]
[333909702,1722624650668,-165.5872134,0.00013698,2]
[333909704,1722624650677,-500.0,0.00013698,2]
[333909706,1722624650686,-500.0,0.00013698,2]
[333909708,1722624650696,-509.98537346,0.00013698,2]
[333909710,1722624650705,-500.0,0.00013698,2]
[333909712,1722624650714,-500.0,0.00013698,2]